[Event "*** Titled Tuesday Blitz"]
[Site "Chess.com"]
[Date "2020.10.27"]
[Round "2"]
[White "TimurGareyev"]
[Black "Zhuu96"]
[Result "1-0"]
[WhiteElo "2621"]
[BlackElo "2876"]
[TimeControl "180+1"]
[EndTime "10:19:49 PDT"]
[Termination "TimurGareyev won by resignation"]

1. d4 {[%clk 0:02:58]} 1... Nf6 {[%clk 0:02:55.1]} 2. Bg5 {[%clk 0:02:58.2]}
2... e6 {[%clk 0:02:49]} 3. Nd2 {[%clk 0:02:55.2]} 3... d5 {[%clk 0:02:48.5]} 4.
e3 {[%clk 0:02:54.4]} 4... c5 {[%clk 0:02:48.3]} 5. c3 {[%clk 0:02:54.3]} 5...
Nc6 {[%clk 0:02:48.7]} 6. f4 {[%clk 0:02:53.7]} 6... Qb6 {[%clk 0:02:46.7]} 7.
Rb1 {[%clk 0:02:53.7]} 7... Be7 {[%clk 0:02:34.2]} 8. Ngf3 {[%clk 0:02:51.8]}
8... Ng4 {[%clk 0:02:33.2]} 9. Bxe7 {[%clk 0:02:38.1]} 9... Nxe7 {[%clk
0:02:25.1]} 10. e4 {[%clk 0:02:23.1]} 10... Ne3 {[%clk 0:02:19.1]} 11. Qe2
{[%clk 0:02:22.6]} 11... cxd4 {[%clk 0:02:15.3]} 12. Nxd4 {[%clk 0:02:20.7]}
12... Nxf1 {[%clk 0:02:12.5]} 13. Rxf1 {[%clk 0:02:11]} 13... O-O {[%clk
0:02:10.5]} 14. e5 {[%clk 0:02:10.6]} 14... Bd7 {[%clk 0:02:10]} 15. Kf2 {[%clk
0:02:04.9]} 15... Nf5 {[%clk 0:02:01.2]} 16. Nf3 {[%clk 0:02:03.5]} 16... a6
{[%clk 0:02:01]} 17. Rfe1 {[%clk 0:01:57.5]} 17... Rac8 {[%clk 0:01:56.9]} 18.
Qd2 {[%clk 0:01:57.4]} 18... Ne7 {[%clk 0:01:50.9]} 19. Kg1 {[%clk 0:01:56.5]}
19... Qc5 {[%clk 0:01:49.3]} 20. h3 {[%clk 0:01:54.8]} 20... b5 {[%clk
0:01:49.2]} 21. Kh2 {[%clk 0:01:53.4]} 21... a5 {[%clk 0:01:48.9]} 22. a3 {[%clk
0:01:52.2]} 22... Qb6 {[%clk 0:01:46.5]} 23. Qe3 {[%clk 0:01:46.9]} 23... Kh8
{[%clk 0:01:35.3]} 24. b4 {[%clk 0:01:43.6]} 24... axb4 {[%clk 0:01:34.7]} 25.
axb4 {[%clk 0:01:40.4]} 25... Rc7 {[%clk 0:01:28]} 26. Nb3 {[%clk 0:01:29.3]}
26... Qxe3 {[%clk 0:01:02.7]} 27. Rxe3 {[%clk 0:01:30.2]} 27... Ra8 {[%clk
0:01:02.8]} 28. Nfd4 {[%clk 0:01:27]} 28... Ng6 {[%clk 0:00:59.7]} 29. Nc5
{[%clk 0:01:20.3]} 29... Kg8 {[%clk 0:00:54.9]} 30. Rf1 {[%clk 0:01:20.6]} 30...
Be8 {[%clk 0:00:49.5]} 31. f5 {[%clk 0:01:18.3]} 31... exf5 {[%clk 0:00:48.1]}
32. Nxf5 {[%clk 0:01:15.7]} 32... Rca7 {[%clk 0:00:47.4]} 33. Nd6 {[%clk
0:01:13.7]} 33... Re7 {[%clk 0:00:47.5]} 34. Rfe1 {[%clk 0:01:12.1]} 34... Rd8
{[%clk 0:00:42.1]} 35. Nf5 {[%clk 0:01:11.2]} 35... Ra7 {[%clk 0:00:40.6]} 36.
e6 {[%clk 0:01:11.4]} 36... fxe6 {[%clk 0:00:26.8]} 37. Nxe6 {[%clk 0:01:12.3]}
37... Rb8 {[%clk 0:00:26]} 38. Nexg7 {[%clk 0:01:12.7]} 38... Bd7 {[%clk
0:00:24.5]} 39. Ne6 {[%clk 0:01:09.2]} 39... Bxe6 {[%clk 0:00:24.6]} 40. Rxe6
{[%clk 0:01:10.1]} 40... Rc7 {[%clk 0:00:25.2]} 41. R1e3 {[%clk 0:01:08.3]}
41... Rf8 {[%clk 0:00:19.4]} 42. Nd4 {[%clk 0:01:04.9]} 42... Rf2 {[%clk
0:00:19]} 43. Nxb5 {[%clk 0:01:02.1]} 43... Rg7 {[%clk 0:00:18.8]} 44. Re8+
{[%clk 0:01:01.7]} 44... Kf7 {[%clk 0:00:18.6]} 45. Kg1 {[%clk 0:00:59.8]} 45...
Rxg2+ {[%clk 0:00:12.3]} 46. Kxg2 {[%clk 0:01:00.7]} 46... Ne7+ {[%clk
0:00:12.5]} 47. Rg3 {[%clk 0:01:00.4]} 47... Rxg3+ {[%clk 0:00:12.7]} 48. Kxg3
{[%clk 0:01:01.3]} 48... Kxe8 {[%clk 0:00:13.4]} 49. Kf4 {[%clk 0:01:01]} 49...
Kd7 {[%clk 0:00:12.7]} 50. Ke5 {[%clk 0:01:01.3]} 50... Ng6+ {[%clk 0:00:12.4]}
51. Kf5 {[%clk 0:00:55]} 51... Kc6 {[%clk 0:00:11.7]} 52. Nd4+ {[%clk
0:00:54.1]} 52... Kd6 {[%clk 0:00:12]} 53. Nf3 {[%clk 0:00:52.7]} 53... Ne7+
{[%clk 0:00:10.5]} 54. Kg5 {[%clk 0:00:51.2]} 54... Ng8 {[%clk 0:00:09.9]} 55.
h4 {[%clk 0:00:50.7]} 55... Kc6 {[%clk 0:00:09.5]} 56. Nd4+ {[%clk 0:00:49.4]}
56... Kd6 {[%clk 0:00:09.8]} 57. Nf5+ {[%clk 0:00:48.3]} 57... Kc6 {[%clk
0:00:07.4]} 58. h5 {[%clk 0:00:40.5]} 58... Kb5 {[%clk 0:00:07.6]} 59. Nd4+
{[%clk 0:00:26.8]} 59... Kc4 {[%clk 0:00:07.8]} 60. b5 {[%clk 0:00:26.6]} 60...
Kc5 {[%clk 0:00:06.6]} 61. Kf5 {[%clk 0:00:24.5]} 61... Kd6 {[%clk 0:00:06.4]}
62. b6 {[%clk 0:00:21.4]} 62... Nh6+ {[%clk 0:00:05.6]} 63. Kf6 {[%clk
0:00:20.5]} 63... Ng4+ {[%clk 0:00:05.9]} 64. Kg7 {[%clk 0:00:20.3]} 64... h6
{[%clk 0:00:05.5]} 65. Kg6 {[%clk 0:00:18.3]} 65... Kd7 {[%clk 0:00:05.5]} 66.
Nf5 {[%clk 0:00:09]} 66... Kc6 {[%clk 0:00:05.8]} 67. Nxh6 {[%clk 0:00:06.6]}
67... Ne5+ {[%clk 0:00:06.2]} 68. Kf5 {[%clk 0:00:05.3]} 68... Nd7 {[%clk
0:00:05]} 69. Nf7 {[%clk 0:00:05.1]} 69... Kxb6 {[%clk 0:00:05.3]} 70. Ne5
{[%clk 0:00:04.6]} 70... Nf8 {[%clk 0:00:05.1]} 71. h6 {[%clk 0:00:03.2]} 71...
Kc5 {[%clk 0:00:05.2]} 72. Nd7+ {[%clk 0:00:03.3]} 72... Nxd7 {[%clk 0:00:04.6]}
73. h7 {[%clk 0:00:02.5]} 1-0

[Event "*** Titled Tuesday Blitz"]
[Site "Chess.com"]
[Date "2020.10.27"]
[Round "2"]
[White "sara_khm"]
[Black "fireheart92"]
[Result "1/2-1/2"]
[WhiteElo "2590"]
[BlackElo "2875"]
[TimeControl "180+1"]
[EndTime "10:19:59 PDT"]
[Termination "Game drawn - insufficient material"]

1. d4 {[%clk 0:03:00.9]} 1... Nf6 {[%clk 0:02:59.6]} 2. c4 {[%clk 0:03:00.6]}
2... g6 {[%clk 0:02:59.6]} 3. g3 {[%clk 0:03:00.4]} 3... c5 {[%clk 0:02:58]} 4.
dxc5 {[%clk 0:02:59.5]} 4... Qa5+ {[%clk 0:02:55.4]} 5. Nc3 {[%clk 0:02:44.3]}
5... Qxc5 {[%clk 0:02:53.9]} 6. Qa4 {[%clk 0:02:28.4]} 6... Nc6 {[%clk
0:02:40.4]} 7. Bg2 {[%clk 0:02:23.8]} 7... Ng4 {[%clk 0:02:18.5]} 8. Nh3 {[%clk
0:02:23.6]} 8... Bg7 {[%clk 0:02:16.9]} 9. O-O {[%clk 0:02:09.3]} 9... O-O
{[%clk 0:02:16]} 10. Ne4 {[%clk 0:02:08]} 10... Qb4 {[%clk 0:01:56.1]} 11. Qxb4
{[%clk 0:02:00.4]} 11... Nxb4 {[%clk 0:01:57]} 12. Bd2 {[%clk 0:01:59.7]} 12...
Nc6 {[%clk 0:01:53.3]} 13. Bc3 {[%clk 0:01:58.3]} 13... d6 {[%clk 0:01:44.4]}
14. Bxg7 {[%clk 0:01:56.9]} 14... Kxg7 {[%clk 0:01:45.3]} 15. Nf4 {[%clk
0:01:57]} 15... Bd7 {[%clk 0:01:39.4]} 16. Nd5 {[%clk 0:01:52.8]} 16... Rac8
{[%clk 0:01:33.2]} 17. b3 {[%clk 0:01:52.2]} 17... f5 {[%clk 0:01:29.1]} 18.
Nec3 {[%clk 0:01:44.9]} 18... e6 {[%clk 0:01:21.3]} 19. Nf4 {[%clk 0:01:40.6]}
19... g5 {[%clk 0:01:21.6]} 20. Nd3 {[%clk 0:01:30.7]} 20... a6 {[%clk
0:01:15.6]} 21. Rfd1 {[%clk 0:01:24.4]} 21... Rfd8 {[%clk 0:01:15.1]} 22. Na4
{[%clk 0:01:16.1]} 22... Be8 {[%clk 0:01:10.9]} 23. Nb6 {[%clk 0:01:15.4]} 23...
Rc7 {[%clk 0:01:05.5]} 24. e3 {[%clk 0:01:14]} 24... Nce5 {[%clk 0:00:54.1]} 25.
Nxe5 {[%clk 0:01:12.7]} 25... Nxe5 {[%clk 0:00:55]} 26. Rd2 {[%clk 0:01:07]}
26... Bc6 {[%clk 0:00:48.8]} 27. f4 {[%clk 0:00:44.3]} 27... Ng4 {[%clk
0:00:44]} 28. Re1 {[%clk 0:00:35.8]} 28... Bxg2 {[%clk 0:00:43.5]} 29. Kxg2
{[%clk 0:00:35]} 29... Nf6 {[%clk 0:00:43.4]} 30. Na4 {[%clk 0:00:14.6]} 30...
b5 {[%clk 0:00:42.3]} 31. Nb2 {[%clk 0:00:12.5]} 31... Ne4 {[%clk 0:00:42.2]}
32. Rc2 {[%clk 0:00:09.3]} 32... gxf4 {[%clk 0:00:38.3]} 33. exf4 {[%clk
0:00:09]} 33... d5 {[%clk 0:00:38.7]} 34. Rd1 {[%clk 0:00:08.1]} 34... Rdc8
{[%clk 0:00:37]} 35. Rdc1 {[%clk 0:00:08.1]} 35... Kf6 {[%clk 0:00:35.7]} 36.
Kf3 {[%clk 0:00:06.4]} 36... bxc4 {[%clk 0:00:33.9]} 37. bxc4 {[%clk 0:00:05.9]}
37... dxc4 {[%clk 0:00:34.3]} 38. Ke3 {[%clk 0:00:04.4]} 38... c3 {[%clk
0:00:31.5]} 39. Nd1 {[%clk 0:00:04.7]} 39... Rc5 {[%clk 0:00:22.4]} 40. Nf2
{[%clk 0:00:05.1]} 40... Nxf2 {[%clk 0:00:14.8]} 41. Kxf2 {[%clk 0:00:04.9]}
41... e5 {[%clk 0:00:15.1]} 42. fxe5+ {[%clk 0:00:04.5]} 42... Kxe5 {[%clk
0:00:16]} 43. Ke3 {[%clk 0:00:04.8]} 43... h5 {[%clk 0:00:12.2]} 44. Kd3 {[%clk
0:00:05.1]} 44... Rd8+ {[%clk 0:00:12.4]} 45. Ke3 {[%clk 0:00:05.2]} 45... Rdc8
{[%clk 0:00:12.4]} 46. Kd3 {[%clk 0:00:05.7]} 46... Ra5 {[%clk 0:00:09.3]} 47.
Re1+ {[%clk 0:00:05.7]} 47... Kf6 {[%clk 0:00:09]} 48. Ree2 {[%clk 0:00:06.2]}
48... Rd5+ {[%clk 0:00:08.8]} 49. Ke3 {[%clk 0:00:06.2]} 49... Kg5 {[%clk
0:00:08.4]} 50. Kf3 {[%clk 0:00:06.4]} 50... Rd3+ {[%clk 0:00:08.6]} 51. Kg2
{[%clk 0:00:06]} 51... Rcd8 {[%clk 0:00:08.1]} 52. Rf2 {[%clk 0:00:05.1]} 52...
a5 {[%clk 0:00:07.1]} 53. h4+ {[%clk 0:00:04.8]} 53... Kg6 {[%clk 0:00:06.9]}
54. Kh3 {[%clk 0:00:04.6]} 54... a4 {[%clk 0:00:07]} 55. Rf4 {[%clk 0:00:04.7]}
55... a3 {[%clk 0:00:06.8]} 56. Ra4 {[%clk 0:00:04.9]} 56... Re8 {[%clk
0:00:05.8]} 57. Ra6+ {[%clk 0:00:04.9]} 57... Kg7 {[%clk 0:00:05.6]} 58. Rxa3
{[%clk 0:00:05.4]} 58... Rd2 {[%clk 0:00:06.1]} 59. Rcxc3 {[%clk 0:00:05.2]}
59... Ree2 {[%clk 0:00:06.3]} 60. g4 {[%clk 0:00:05.8]} 60... hxg4+ {[%clk
0:00:05.7]} 61. Kg3 {[%clk 0:00:06.1]} 61... Kf6 {[%clk 0:00:04.7]} 62. Rc6+
{[%clk 0:00:05]} 62... Ke5 {[%clk 0:00:05]} 63. Ra5+ {[%clk 0:00:05]} 63... Rd5
{[%clk 0:00:05.1]} 64. Rcc5 {[%clk 0:00:02.8]} 64... Rxc5 {[%clk 0:00:04.6]} 65.
Rxc5+ {[%clk 0:00:02.5]} 65... Ke4 {[%clk 0:00:05.1]} 66. Rc4+ {[%clk
0:00:02.7]} 66... Kd3 {[%clk 0:00:05.5]} 67. Rf4 {[%clk 0:00:02.5]} 67... Re5
{[%clk 0:00:05]} 68. h5 {[%clk 0:00:02.9]} 68... Ke3 {[%clk 0:00:04.5]} 69. h6
{[%clk 0:00:03.5]} 69... Re6 {[%clk 0:00:01.8]} 70. h7 {[%clk 0:00:03.8]} 70...
Rh6 {[%clk 0:00:01.8]} 71. Rxf5 {[%clk 0:00:04.5]} 71... Rxh7 {[%clk 0:00:02.3]}
72. Kxg4 {[%clk 0:00:05.1]} 72... Ra7 {[%clk 0:00:02.9]} 73. Rf3+ {[%clk
0:00:05.5]} 73... Ke2 {[%clk 0:00:02.6]} 74. Rg3 {[%clk 0:00:05.8]} 74... Kd1
{[%clk 0:00:02.2]} 75. a3 {[%clk 0:00:05.8]} 75... Kc1 {[%clk 0:00:03.1]} 76.
Kf4 {[%clk 0:00:06.1]} 76... Kb2 {[%clk 0:00:04]} 77. Ke4 {[%clk 0:00:06.5]}
77... Rxa3 {[%clk 0:00:04.2]} 78. Rxa3 {[%clk 0:00:06.6]} 78... Kxa3 {[%clk
0:00:05.1]} 1/2-1/2

[Event "*** Titled Tuesday Blitz"]
[Site "Chess.com"]
[Date "2020.10.27"]
[Round "2"]
[White "Anton_Demchenko"]
[Black "blitzking1729"]
[Result "1/2-1/2"]
[WhiteElo "2845"]
[BlackElo "2565"]
[TimeControl "180+1"]
[EndTime "10:20:09 PDT"]
[Termination "Game drawn by repetition"]

1. d4 {[%clk 0:03:00.9]} 1... d5 {[%clk 0:02:59.2]} 2. Nf3 {[%clk 0:03:01.4]}
2... Nf6 {[%clk 0:02:58.9]} 3. Bf4 {[%clk 0:03:02]} 3... Bf5 {[%clk 0:02:58.2]}
4. c4 {[%clk 0:03:01.3]} 4... e6 {[%clk 0:02:56]} 5. Qb3 {[%clk 0:03:01.5]} 5...
Nc6 {[%clk 0:02:54.9]} 6. Nbd2 {[%clk 0:02:58.6]} 6... Bb4 {[%clk 0:02:48.3]} 7.
a3 {[%clk 0:02:46.7]} 7... dxc4 {[%clk 0:02:47.6]} 8. Qxc4 {[%clk 0:02:45.9]}
8... Bxd2+ {[%clk 0:02:46.2]} 9. Bxd2 {[%clk 0:02:45.7]} 9... O-O {[%clk
0:02:46]} 10. Bg5 {[%clk 0:02:11.4]} 10... Qd5 {[%clk 0:02:40.9]} 11. Qxd5
{[%clk 0:02:11]} 11... Nxd5 {[%clk 0:02:39.5]} 12. Rc1 {[%clk 0:02:00]} 12...
Nb6 {[%clk 0:02:37.2]} 13. e3 {[%clk 0:01:48.2]} 13... a6 {[%clk 0:02:33]} 14.
Be2 {[%clk 0:01:46.7]} 14... h6 {[%clk 0:02:15.2]} 15. Bf4 {[%clk 0:01:46.6]}
15... Rac8 {[%clk 0:02:14.6]} 16. O-O {[%clk 0:01:46.9]} 16... Rfd8 {[%clk
0:02:09.4]} 17. Rfd1 {[%clk 0:01:38.1]} 17... Nd5 {[%clk 0:01:52.5]} 18. Bg3
{[%clk 0:01:36.5]} 18... Nce7 {[%clk 0:01:45.7]} 19. Nd2 {[%clk 0:01:33.1]}
19... Bg6 {[%clk 0:01:42.2]} 20. Nb3 {[%clk 0:01:27.3]} 20... Nf5 {[%clk
0:01:28.4]} 21. Na5 {[%clk 0:01:14.5]} 21... Nxg3 {[%clk 0:01:27.2]} 22. hxg3
{[%clk 0:01:15.4]} 22... Rb8 {[%clk 0:01:25.4]} 23. b4 {[%clk 0:01:13.7]} 23...
c6 {[%clk 0:01:24.7]} 24. Kf1 {[%clk 0:01:02.8]} 24... Rd7 {[%clk 0:01:21.1]}
25. Ke1 {[%clk 0:01:02.6]} 25... Rbd8 {[%clk 0:01:19]} 26. Nb3 {[%clk
0:01:02.6]} 26... Rc7 {[%clk 0:01:16.7]} 27. Bf3 {[%clk 0:01:00.9]} 27... Nf6
{[%clk 0:01:15.2]} 28. Rc5 {[%clk 0:00:49.1]} 28... Nd7 {[%clk 0:01:10.5]} 29.
Rc3 {[%clk 0:00:46.7]} 29... Nf6 {[%clk 0:01:01.5]} 30. Nc5 {[%clk 0:00:39.6]}
30... Ra8 {[%clk 0:01:00]} 31. Nb3 {[%clk 0:00:38.6]} 31... Rd8 {[%clk
0:00:58.8]} 32. Rcc1 {[%clk 0:00:38]} 32... Kf8 {[%clk 0:00:48.3]} 33. Ke2
{[%clk 0:00:37.6]} 33... Ke7 {[%clk 0:00:47.3]} 34. Na5 {[%clk 0:00:37.3]} 34...
Be4 {[%clk 0:00:42.3]} 35. Nc4 {[%clk 0:00:24.1]} 35... Bxf3+ {[%clk 0:00:40.3]}
36. gxf3 {[%clk 0:00:25]} 36... Nd7 {[%clk 0:00:38.5]} 37. Na5 {[%clk
0:00:24.9]} 37... Nf6 {[%clk 0:00:37.9]} 38. e4 {[%clk 0:00:25.3]} 38... Rcd7
{[%clk 0:00:36.9]} 39. Ke3 {[%clk 0:00:25.8]} 39... e5 {[%clk 0:00:35.9]} 40.
Nb3 {[%clk 0:00:23.7]} 40... exd4+ {[%clk 0:00:35.3]} 41. Rxd4 {[%clk
0:00:24.6]} 41... Rxd4 {[%clk 0:00:34.9]} 42. Nxd4 {[%clk 0:00:25.5]} 42... Nd7
{[%clk 0:00:35.2]} 43. Nf5+ {[%clk 0:00:25]} 43... Kf8 {[%clk 0:00:34.8]} 44.
Rd1 {[%clk 0:00:25.9]} 44... g6 {[%clk 0:00:35]} 45. Nxh6 {[%clk 0:00:24.3]}
45... Ke7 {[%clk 0:00:31.6]} 46. f4 {[%clk 0:00:21.1]} 46... Ra8 {[%clk
0:00:27.6]} 47. Nxf7 {[%clk 0:00:20.8]} 47... a5 {[%clk 0:00:21.5]} 48. Nd6
{[%clk 0:00:15.8]} 48... axb4 {[%clk 0:00:21.1]} 49. axb4 {[%clk 0:00:16.7]}
49... Ra3+ {[%clk 0:00:20.1]} 50. Ke2 {[%clk 0:00:17.4]} 50... Ra2+ {[%clk
0:00:20.3]} 51. Kf3 {[%clk 0:00:17.2]} 51... Ra3+ {[%clk 0:00:20.4]} 52. Kg2
{[%clk 0:00:17.8]} 52... Ra4 {[%clk 0:00:20.3]} 53. e5 {[%clk 0:00:17.2]} 53...
Rxb4 {[%clk 0:00:20]} 54. Rh1 {[%clk 0:00:15.8]} 54... c5 {[%clk 0:00:19]} 55.
Ra1 {[%clk 0:00:07.8]} 55... c4 {[%clk 0:00:18.7]} 56. Kf3 {[%clk 0:00:06.7]}
56... b5 {[%clk 0:00:17.1]} 57. Ra7 {[%clk 0:00:06]} 57... Ke6 {[%clk
0:00:16.7]} 58. Ne4 {[%clk 0:00:05.8]} 58... Rb3+ {[%clk 0:00:15.3]} 59. Ke2
{[%clk 0:00:05.8]} 59... Rb2+ {[%clk 0:00:15.2]} 60. Kf3 {[%clk 0:00:06.4]}
60... Rb3+ {[%clk 0:00:15]} 61. Kg4 {[%clk 0:00:07]} 61... b4 {[%clk 0:00:12.6]}
62. Ng5+ {[%clk 0:00:07.2]} 62... Ke7 {[%clk 0:00:10.7]} 63. e6 {[%clk
0:00:07.3]} 63... Rd3 {[%clk 0:00:11.1]} 64. exd7 {[%clk 0:00:07.5]} 64... Rxd7
{[%clk 0:00:10.6]} 65. Ra4 {[%clk 0:00:06.9]} 65... Rb7 {[%clk 0:00:10.3]} 66.
Ne4 {[%clk 0:00:06.9]} 66... Ke6 {[%clk 0:00:08.9]} 67. Kf3 {[%clk 0:00:06.3]}
67... Kd5 {[%clk 0:00:08.6]} 68. Ke3 {[%clk 0:00:06.9]} 68... b3 {[%clk
0:00:07.5]} 69. Nc3+ {[%clk 0:00:06.5]} 69... Kc5 {[%clk 0:00:07.3]} 70. Kd2
{[%clk 0:00:05.1]} 70... Rd7+ {[%clk 0:00:06.7]} 71. Kc1 {[%clk 0:00:05.6]}
71... Rd3 {[%clk 0:00:06.9]} 72. Nd1 {[%clk 0:00:05.8]} 72... c3 {[%clk
0:00:06.5]} 73. Ra8 {[%clk 0:00:05.2]} 73... Kb4 {[%clk 0:00:06.2]} 74. Rb8+
{[%clk 0:00:05.3]} 74... Ka3 {[%clk 0:00:06.4]} 75. Ra8+ {[%clk 0:00:05.9]}
75... Kb4 {[%clk 0:00:06.5]} 76. g4 {[%clk 0:00:06.2]} 76... Rh3 {[%clk
0:00:04.4]} 77. Rb8+ {[%clk 0:00:04.1]} 77... Ka3 {[%clk 0:00:04.3]} 78. Ra8+
{[%clk 0:00:04.7]} 78... Kb4 {[%clk 0:00:04.3]} 79. Rb8+ {[%clk 0:00:04.3]}
79... Ka3 {[%clk 0:00:04.7]} 80. Ra8+ {[%clk 0:00:04.8]} 80... Kb4 {[%clk
0:00:05.1]} 1/2-1/2

[Event "*** Titled Tuesday Blitz"]
[Site "Chess.com"]
[Date "2020.10.27"]
[Round "2"]
[White "BrandonJacobson"]
[Black "druskacik"]
[Result "1/2-1/2"]
[WhiteElo "2946"]
[BlackElo "2619"]
[TimeControl "180+1"]
[EndTime "10:20:14 PDT"]
[Termination "Game drawn by repetition"]

1. d4 {[%clk 0:03:00.9]} 1... d5 {[%clk 0:02:58.7]} 2. c4 {[%clk 0:03:01.1]}
2... e6 {[%clk 0:02:59]} 3. Nf3 {[%clk 0:03:01.8]} 3... Nf6 {[%clk 0:02:59.5]}
4. g3 {[%clk 0:03:02.5]} 4... Bb4+ {[%clk 0:02:57.7]} 5. Bd2 {[%clk 0:03:02.4]}
5... Be7 {[%clk 0:02:57.5]} 6. Bg2 {[%clk 0:03:01.3]} 6... O-O {[%clk 0:02:58]}
7. O-O {[%clk 0:03:02.1]} 7... Nbd7 {[%clk 0:02:57.9]} 8. Qc2 {[%clk 0:03:02.6]}
8... c6 {[%clk 0:02:55.7]} 9. Bf4 {[%clk 0:03:03.1]} 9... b6 {[%clk 0:02:53.1]}
10. Rd1 {[%clk 0:03:03.3]} 10... a5 {[%clk 0:02:44.2]} 11. Ne5 {[%clk
0:03:00.6]} 11... Bb7 {[%clk 0:02:42.5]} 12. Nc3 {[%clk 0:03:00.4]} 12... Nh5
{[%clk 0:02:36.9]} 13. Bc1 {[%clk 0:02:59.9]} 13... Nhf6 {[%clk 0:02:36.3]} 14.
e4 {[%clk 0:03:00.1]} 14... Rc8 {[%clk 0:02:21.4]} 15. Nxd7 {[%clk 0:02:52.2]}
15... Qxd7 {[%clk 0:02:09.3]} 16. e5 {[%clk 0:02:51.7]} 16... Ne8 {[%clk
0:02:08.5]} 17. cxd5 {[%clk 0:02:50.9]} 17... cxd5 {[%clk 0:02:08.1]} 18. Bf1
{[%clk 0:02:47.5]} 18... Nc7 {[%clk 0:02:04.8]} 19. Bd3 {[%clk 0:02:47.7]} 19...
g6 {[%clk 0:02:02.5]} 20. Qe2 {[%clk 0:02:48]} 20... Rfd8 {[%clk 0:01:48]} 21.
Bh6 {[%clk 0:02:45.7]} 21... Ra8 {[%clk 0:01:37]} 22. Qe3 {[%clk 0:02:45]} 22...
Ba6 {[%clk 0:01:35.2]} 23. Bc2 {[%clk 0:02:45]} 23... b5 {[%clk 0:01:32.8]} 24.
h4 {[%clk 0:02:40.6]} 24... b4 {[%clk 0:01:23.2]} 25. Na4 {[%clk 0:02:40.4]}
25... Rab8 {[%clk 0:01:22.2]} 26. Nc5 {[%clk 0:02:39.1]} 26... Qc6 {[%clk
0:01:15.8]} 27. Rac1 {[%clk 0:02:31.5]} 27... Bb5 {[%clk 0:01:15.4]} 28. Bb1
{[%clk 0:02:30.9]} 28... Rdc8 {[%clk 0:01:09.7]} 29. Qf4 {[%clk 0:02:21.9]}
29... Qe8 {[%clk 0:00:58.1]} 30. h5 {[%clk 0:02:16.7]} 30... Na6 {[%clk
0:00:55.3]} 31. Bg5 {[%clk 0:02:06.5]} 31... Nxc5 {[%clk 0:00:47.4]} 32. dxc5
{[%clk 0:02:06.2]} 32... Rxc5 {[%clk 0:00:37]} 33. Rxc5 {[%clk 0:02:01.3]} 33...
Bxc5 {[%clk 0:00:37.9]} 34. Bf6 {[%clk 0:02:01.9]} 34... Be7 {[%clk 0:00:33.9]}
35. Kg2 {[%clk 0:01:50.6]} 35... Bxf6 {[%clk 0:00:11.8]} 36. Qxf6 {[%clk
0:01:48.7]} 36... Qd8 {[%clk 0:00:11.7]} 37. Qf4 {[%clk 0:01:49]} 37... Rc8
{[%clk 0:00:11.3]} 38. Rh1 {[%clk 0:01:39.6]} 38... Qf8 {[%clk 0:00:11.4]} 39.
Qg5 {[%clk 0:01:22.5]} 39... Qg7 {[%clk 0:00:10.6]} 40. h6 {[%clk 0:01:07.4]}
40... Qf8 {[%clk 0:00:10.7]} 41. Qf6 {[%clk 0:01:07.6]} 41... d4 {[%clk
0:00:10.8]} 42. Be4 {[%clk 0:00:44.3]} 42... d3 {[%clk 0:00:10.2]} 43. g4 {[%clk
0:00:40.3]} 43... d2 {[%clk 0:00:09.5]} 44. Bf3 {[%clk 0:00:29.4]} 44... Rc1
{[%clk 0:00:08]} 45. Bd1 {[%clk 0:00:23.8]} 45... Bc6+ {[%clk 0:00:08.2]} 46. f3
{[%clk 0:00:23.3]} 46... Bd5 {[%clk 0:00:08.6]} 47. g5 {[%clk 0:00:21.6]} 47...
a4 {[%clk 0:00:08.9]} 48. a3 {[%clk 0:00:17.4]} 48... bxa3 {[%clk 0:00:08.8]}
49. bxa3 {[%clk 0:00:18.3]} 49... Bb3 {[%clk 0:00:08.6]} 50. Be2 {[%clk
0:00:12]} 50... Rxh1 {[%clk 0:00:09.5]} 51. Kxh1 {[%clk 0:00:12.2]} 51... d1=Q+
{[%clk 0:00:10]} 52. Bxd1 {[%clk 0:00:12.5]} 52... Bxd1 {[%clk 0:00:10.9]} 53.
Kg2 {[%clk 0:00:12.7]} 53... Bc2 {[%clk 0:00:11.4]} 54. Kg3 {[%clk 0:00:13]}
54... Bf5 {[%clk 0:00:11.4]} 55. Kg2 {[%clk 0:00:13.1]} 55... Bc2 {[%clk
0:00:11.4]} 56. Kg3 {[%clk 0:00:13.6]} 56... Bb3 {[%clk 0:00:11.8]} 57. Kg2
{[%clk 0:00:14]} 57... Bd5 {[%clk 0:00:12.2]} 58. Kg3 {[%clk 0:00:14.6]} 58...
Bc6 {[%clk 0:00:12.4]} 59. Kg2 {[%clk 0:00:15]} 59... Bd5 {[%clk 0:00:12.1]} 60.
Kh2 {[%clk 0:00:14.6]} 60... Bxf3 {[%clk 0:00:09.7]} 61. Qxf3 {[%clk 0:00:15.2]}
61... Qd8 {[%clk 0:00:10.2]} 62. Qf4 {[%clk 0:00:09.8]} 62... Kf8 {[%clk
0:00:10.2]} 63. Qxa4 {[%clk 0:00:08.7]} 63... Qd2+ {[%clk 0:00:09.4]} 64. Kh3
{[%clk 0:00:09.2]} 64... Qe3+ {[%clk 0:00:09.3]} 65. Kg2 {[%clk 0:00:07.6]}
65... Qxg5+ {[%clk 0:00:09.1]} 66. Kf1 {[%clk 0:00:07.6]} 66... Qf5+ {[%clk
0:00:08.6]} 67. Kg2 {[%clk 0:00:07.3]} 67... Qg5+ {[%clk 0:00:08.1]} 68. Kf1
{[%clk 0:00:07.8]} 68... Qxh6 {[%clk 0:00:08.5]} 69. Qb4+ {[%clk 0:00:07.4]}
69... Kg7 {[%clk 0:00:05.6]} 70. Qc3 {[%clk 0:00:07.3]} 70... Qf4+ {[%clk
0:00:04.6]} 71. Kg2 {[%clk 0:00:07.6]} 71... h5 {[%clk 0:00:05.2]} 72. Qb4
{[%clk 0:00:07]} 72... Qg5+ {[%clk 0:00:05.1]} 73. Kh1 {[%clk 0:00:06.2]} 73...
h4 {[%clk 0:00:06]} 74. a4 {[%clk 0:00:06.1]} 74... h3 {[%clk 0:00:06.3]} 75.
Qe4 {[%clk 0:00:06.5]} 75... Qc1+ {[%clk 0:00:05.7]} 76. Kh2 {[%clk 0:00:06.7]}
76... Qc3 {[%clk 0:00:05.8]} 77. Qf4 {[%clk 0:00:05.2]} 77... Qa3 {[%clk
0:00:05]} 78. Qd4 {[%clk 0:00:03.9]} 78... Kg8 {[%clk 0:00:05.9]} 79. Qd8+
{[%clk 0:00:03.9]} 79... Kh7 {[%clk 0:00:06.2]} 80. Qh4+ {[%clk 0:00:03.8]}
80... Kg7 {[%clk 0:00:06.8]} 81. Qf6+ {[%clk 0:00:04.1]} 81... Kg8 {[%clk
0:00:07.7]} 82. Qd8+ {[%clk 0:00:04.6]} 82... Kg7 {[%clk 0:00:08.3]} 83. Qf6+
{[%clk 0:00:05]} 83... Kg8 {[%clk 0:00:08.6]} 84. Qd8+ {[%clk 0:00:05.4]}
1/2-1/2